[Event "World Junior U20 Girls 2018"]
[Site "Gebze"]
[Date "2018.09.12"]
[Round "8"]
[White "Sieber, Fiona"]
[Black "Sankova, Stella"]
[Result "1/2-1/2"]
[ECO "B90"]
[WhiteElo "2277"]
[BlackElo "2081"]
[Annotator "NA"]
[PlyCount "100"]
[EventDate "2018.09.05"]
[EventType "swiss"]
[EventCountry "TUR"]
[SourceTitle "playchess.com"]
[Source "ChessBase"]
[SourceQuality "1"]
[TimeControl "40/5400+30:1800+30"]

1. e4 {[%emt 0:00:30]} c5 {[%emt 0:00:30]} 2. Nf3 {[%emt 0:00:30]} d6 {[%emt 0:00:30]} 3. d4 {[%emt 0:00:30]} cxd4 {[%emt 0:00:30]} 4. Nxd4 {[%emt 0:00:00]} Nf6 {[%emt 0:00:00]} 5. Nc3 {[%emt 0:00:00]} a6 {[%emt 0:00:00]} 6. Be3 {[%emt 0:00:00]} e5 {[%emt 0:00:00]} 7. Nb3 {[%emt 0:00:00]} Be6 {[%emt 0:00:00]} 8. Qd2 {[%emt 0:00:00]} Nbd7 {[%emt 0:00:00]} 9. f3 {[%emt 0:00:00]} h5 {[%emt 0:00:00]} 10. O-O-O {[%emt 0:00:30]} Rc8 {[%emt 0:00:30]} 11. Kb1 {[%emt 0:00:30]} Be7 {[%emt 0:00:00]} 12. f4 {[%emt 0:00:00]} b5 {[%emt 0:01:00]} 13. Bd3 {[%emt 0:01:00]} Qc7 {[%emt 0:00:30]} 14. h3 {[%emt 0:05:30]} h4 {[%emt 0:02:30]} 15. Rhe1 {[%emt 0:00:00]} Bc4 {[%emt 0:00:30]} 16. Bf2 {[%emt 0:03:00]} Bxd3 {[%emt 0:01:30]} 17. cxd3 {[%emt 0:03:30]} b4 {[%emt 0:01:30]} 18. Nd5 {[%emt 0:12:30]} Nxd5 {[%emt 0:00:30]} 19. exd5 {[%emt 0:00:30]} Qb7 {[%emt 0:01:30]} 20. d4 {[%emt 0:12:30]} e4 {[%emt 0:09:30]} 21. f5 {[%emt 0:11:30]} Qxd5 {[%emt 0:13:30]} 22. Qf4 {[%emt 0:00:30]} Kf8 {[%emt 0:04:30]} 23. Qxe4 {[%emt 0:08:30]} Qxe4+ {[%emt 0:00:30]} 24. Rxe4 {[%emt 0:00:00]} d5 {[%emt 0:01:30]} 25. Rf4 {[%emt 0:04:00]} Bg5 {[%emt 0:16:30]} 26. Rf3 {[%emt 0:03:30]} Rh6 {[%emt 0:02:30]} 27. Be1 {[%emt 0:04:30]} Be7 {[%emt 0:06:30]} 28. Rf4 {[%emt 0:01:30]} Nb6 {[%emt 0:09:30]} 29. Nd2 {[%emt 0:04:30]} Nc4 {[%emt 0:02:30]} 30. Nxc4 {[%emt 0:01:30]} Rxc4 {[%emt 0:01:30]} 31. b3 {[%emt 0:01:30]} Rcc6 {[%emt 0:01:30]} 32. Rg4 {[%emt 0:04:27]} Rh5 {[%emt 0:04:52]} 33. f6 {[%emt 0:04:47]} Bxf6 {[%emt 0:01:41]} 34. Bxb4+ {[%emt 0:00:30]} Ke8 {[%emt 0:00:00]} 35. Re1+ {[%emt 0:04:19]} Kd7 {[%emt 0:00:15]} 36. Rf4 {[%emt 0:06:28]} Rg5 {[%emt 0:08:34]} 37. Re2 {[%emt 0:00:19]} Re6 {[%emt 0:00:09]} 38. Rc2 {[%emt 0:02:04]} Rc6 {[%emt 0:02:44]} 39. Bc5 {[%emt 0:01:37]} Rg3 {[%emt 0:03:52]} 40. Rf5 {[%emt 0:00:30]} Ke6 {[%emt 0:00:00]} 41. Rh5 {[%emt 0:02:59]} Re3 {[%emt 0:00:53]} 42. Rh8 {[%emt 0:03:30]} Re1+ {[%emt 0:04:30]} 43. Kb2 {[%emt 0:00:30]} Rd1 {[%emt 0:06:30]} 44. Ra8 {[%emt 0:07:30]} Kf5 {[%emt 0:09:06]} 45. Ra7 {[%emt 0:00:30]} Rxc5 {[%emt 0:06:31]} 46. Rf2+ {[%emt 0:00:30]} Ke4 {[%emt 0:00:53]} 47. Rxf6 {[%emt 0:00:00]} Rd2+ {[%emt 0:07:27]} 48. Kb1 {[%emt 0:00:00]} Rd1+ {[%emt 0:00:30]} 49. Kb2 {[%emt 0:00:00]} Rd2+ {[%emt 0:00:00]} 50. Kb1 {[%emt 0:00:00]} Rd1+ {[%emt 0:00:18]} 1/2-1/2

[Event "World Junior U20 Girls 2018"]
[Site "Gebze"]
[Date "2018.09.12"]
[Round "8"]
[White "Diakonova, Ekaterina"]
[Black "Hojjatova, Aydan"]
[Result "0-1"]
[ECO "C07"]
[WhiteElo "2243"]
[BlackElo "2356"]
[Annotator "NA"]
[PlyCount "68"]
[EventDate "2018.09.05"]
[EventType "swiss"]
[EventCountry "TUR"]
[SourceTitle "playchess.com"]
[Source "ChessBase"]
[SourceQuality "1"]
[TimeControl "40/5400+30:1800+30"]

1. e4 {[%emt 0:00:30]} e6 {[%emt 0:00:30]} 2. d4 {[%emt 0:00:30]} d5 {[%emt 0:00:30]} 3. Nd2 {[%emt 0:00:00]} c5 {[%emt 0:00:00]} 4. Ngf3 {[%emt 0:00:00]} a6 {[%emt 0:00:00]} 5. c3 {[%emt 0:05:30]} Nc6 {[%emt 0:02:30]} 6. exd5 {[%emt 0:05:30]} exd5 {[%emt 0:00:00]} 7. dxc5 {[%emt 0:02:30]} Bxc5 {[%emt 0:00:00]} 8. Nb3 {[%emt 0:01:30]} Bb6 {[%emt 0:00:30]} 9. Qe2+ {[%emt 0:02:30]} Nge7 {[%emt 0:06:30]} 10. Be3 {[%emt 0:00:30]} Bc7 {[%emt 0:02:30]} 11. Qc2 {[%emt 0:07:30]} O-O {[%emt 0:08:30]} 12. Bd3 {[%emt 0:00:30]} Ng6 {[%emt 0:00:30]} 13. O-O-O {[%emt 0:05:30]} Bg4 {[%emt 0:13:30]} 14. h4 {[%emt 0:05:30]} f5 {[%emt 0:05:30]} 15. Bc4 {[%emt 0:07:30]} Nce7 {[%emt 0:10:30]} 16. Bg5 {[%emt 0:05:30]} Bf4+ {[%emt 0:02:30]} 17. Kb1 {[%emt 0:02:30]} Bxg5 {[%emt 0:01:30]} 18. hxg5 {[%emt 0:00:30]} Nf4 {[%emt 0:01:30]} 19. Rd4 {[%emt 0:12:30]} Qc7 {[%emt 0:05:30]} 20. Bf1 {[%emt 0:09:30]} Nc6 {[%emt 0:05:30]} 21. Rd1 {[%emt 0:00:00]} Rae8 {[%emt 0:04:30]} 22. c4 {[%emt 0:00:00]} d4 {[%emt 0:05:30]} 23. c5 {[%emt 0:03:30]} Kh8 {[%emt 0:02:30]} 24. Qc1 {[%emt 0:07:29]} Re4 {[%emt 0:08:43]} 25. Bc4 {[%emt 0:05:01]} g6 {[%emt 0:01:46]} 26. Nbd2 {[%emt 0:01:48]} Re7 {[%emt 0:01:34]} 27. g3 {[%emt 0:00:20]} Ne2 {[%emt 0:02:53]} 28. Qc2 {[%emt 0:00:17]} Nb4 {[%emt 0:00:53]} 29. Qb3 {[%emt 0:00:28]} Qxc5 {[%emt 0:00:44]} 30. Rde1 {[%emt 0:04:21]} f4 {[%emt 0:03:35]} 31. Ka1 {[%emt 0:03:58]} Bf5 {[%emt 0:00:46]} 32. a3 {[%emt 0:01:43]} Nc2+ {[%emt 0:00:22]} 33. Ka2 {[%emt 0:00:00]} Nxe1 {[%emt 0:00:21]} 34. Nxe1 {[%emt 0:00:00]} Nc1+ {[%emt 0:00:30]} 0-1

[Event "World Junior U20 Girls 2018"]
[Site "Gebze"]
[Date "2018.09.12"]
[Round "8"]
[White "Mahalakshmi, M."]
[Black "Yang, Yijing"]
[Result "1/2-1/2"]
[ECO "D78"]
[WhiteElo "2213"]
[BlackElo "2018"]
[Annotator "NA"]
[PlyCount "67"]
[EventDate "2018.09.05"]
[EventType "swiss"]
[EventCountry "TUR"]
[SourceTitle "playchess.com"]
[Source "ChessBase"]
[SourceQuality "1"]
[TimeControl "40/5400+30:1800+30"]

1. Nf3 {[%emt 0:00:30]} Nf6 {[%emt 0:00:30]} 2. d4 {[%emt 0:00:00]} g6 {[%emt 0:00:00]} 3. g3 {[%emt 0:02:00]} Bg7 {[%emt 0:00:00]} 4. Bg2 {[%emt 0:00:00]} d5 {[%emt 0:00:30]} 5. O-O {[%emt 0:00:00]} O-O {[%emt 0:00:00]} 6. c4 {[%emt 0:00:30]} c6 {[%emt 0:00:00]} 7. Qb3 {[%emt 0:00:30]} Qb6 {[%emt 0:00:30]} 8. Nc3 {[%emt 0:00:00]} Bf5 {[%emt 0:00:00]} 9. h3 {[%emt 0:06:00]} Na6 {[%emt 0:05:00]} 10. Qxb6 {[%emt 0:06:30]} axb6 {[%emt 0:00:00]} 11. cxd5 {[%emt 0:00:00]} Nxd5 {[%emt 0:01:00]} 12. Nxd5 {[%emt 0:05:00]} cxd5 {[%emt 0:00:30]} 13. Bd2 {[%emt 0:01:30]} Be4 {[%emt 0:06:30]} 14. e3 {[%emt 0:00:30]} Rfc8 {[%emt 0:03:30]} 15. Rfc1 {[%emt 0:02:30]} Rc6 {[%emt 0:04:30]} 16. Kf1 {[%emt 0:10:30]} Rac8 {[%emt 0:06:30]} 17. Bc3 {[%emt 0:04:30]} Nc7 {[%emt 0:12:30]} 18. Bb4 {[%emt 0:05:30]} e6 {[%emt 0:00:30]} 19. Ke2 {[%emt 0:09:30]} Nb5 {[%emt 0:15:30]} 20. Kd1 {[%emt 0:02:30]} Bf8 {[%emt 0:03:30]} 21. Bxf8 {[%emt 0:06:30]} Kxf8 {[%emt 0:00:00]} 22. Rxc6 {[%emt 0:01:30]} Rxc6 {[%emt 0:02:00]} 23. Ne5 {[%emt 0:03:30]} Bxg2 {[%emt 0:10:30]} 24. Nxc6 {[%emt 0:00:30]} bxc6 {[%emt 0:00:30]} 25. Rc1 {[%emt 0:00:30]} Na7 {[%emt 0:00:30]} 26. Ke2 {[%emt 0:06:30]} Bxh3 {[%emt 0:03:30]} 27. Rh1 {[%emt 0:02:30]} Bf5 {[%emt 0:00:30]} 28. Rxh7 {[%emt 0:00:30]} Kg8 {[%emt 0:00:30]} 29. Rh1 {[%emt 0:00:30]} g5 {[%emt 0:03:30]} 30. Rc1 {[%emt 0:00:30]} Kf8 {[%emt 0:01:30]} 31. Rh1 {[%emt 0:04:30]} Kg7 {[%emt 0:01:30]} 32. Rc1 {[%emt 0:00:30]} Kf8 {[%emt 0:00:00]} 33. Rh1 {[%emt 0:01:15]} Kg7 {[%emt 0:00:00]} 34. Rc1 {[%emt 0:00:42]} 1/2-1/2

[Event "World Junior U20 Girls 2018"]
[Site "Gebze"]
[Date "2018.09.12"]
[Round "8"]
[White "Caglar, Sila"]
[Black "Malatsilava, Volha"]
[Result "1-0"]
[ECO "A04"]
[WhiteElo "2208"]
[BlackElo "2040"]
[Annotator "NA"]
[PlyCount "92"]
[EventDate "2018.09.05"]
[EventType "swiss"]
[EventCountry "TUR"]
[SourceTitle "playchess.com"]
[Source "ChessBase"]
[SourceQuality "1"]
[TimeControl "40/5400+30:1800+30"]

1. e4 {[%emt 0:00:30]} c5 {[%emt 0:00:30]} 2. Nf3 {[%emt 0:00:00]} e6 {[%emt 0:00:00]} 3. d3 {[%emt 0:00:00]} d6 {[%emt 0:01:00]} 4. g3 {[%emt 0:00:00]} g6 {[%emt 0:00:30]} 5. Bg2 {[%emt 0:01:00]} Bg7 {[%emt 0:00:30]} 6. O-O {[%emt 0:00:00]} Ne7 {[%emt 0:00:30]} 7. c3 {[%emt 0:00:00]} O-O {[%emt 0:01:30]} 8. d4 {[%emt 0:01:30]} cxd4 {[%emt 0:00:30]} 9. cxd4 {[%emt 0:00:30]} Nbc6 {[%emt 0:00:00]} 10. Re1 {[%emt 0:01:30]} Qb6 {[%emt 0:07:00]} 11. d5 {[%emt 0:00:30]} exd5 {[%emt 0:18:30]} 12. exd5 {[%emt 0:00:30]} Ne5 {[%emt 0:00:30]} 13. Nxe5 {[%emt 0:04:30]} Bxe5 {[%emt 0:00:30]} 14. Nd2 {[%emt 0:00:30]} Qd4 {[%emt 0:03:30]} 15. Qb3 {[%emt 0:07:30]} Qc5 {[%emt 0:16:30]} 16. Nc4 {[%emt 0:06:30]} Bf6 {[%emt 0:01:30]} 17. Bf4 {[%emt 0:06:30]} Nf5 {[%emt 0:06:30]} 18. Rac1 {[%emt 0:01:30]} g5 {[%emt 0:14:30]} 19. Nxd6 {[%emt 0:13:30]} Qb6 {[%emt 0:00:30]} 20. Nxf5 {[%emt 0:03:30]} gxf4 {[%emt 0:01:30]} 21. Ne7+ {[%emt 0:06:30]} Kg7 {[%emt 0:01:30]} 22. Qf3 {[%emt 0:01:30]} fxg3 {[%emt 0:02:30]} 23. hxg3 {[%emt 0:00:30]} Bd7 {[%emt 0:01:30]} 24. b3 {[%emt 0:05:30]} Rfe8 {[%emt 0:01:17]} 25. Nf5+ {[%emt 0:01:30]} Kh8 {[%emt 0:00:16]} 26. Nh6 {[%emt 0:04:30]} Kg7 {[%emt 0:01:03]} 27. Qh5 {[%emt 0:03:30]} Bd4 {[%emt 0:10:45]} 28. Nf5+ {[%emt 0:03:30]} Bxf5 {[%emt 0:00:32]} 29. Qxf5 {[%emt 0:00:30]} Qg6 {[%emt 0:00:20]} 30. Qf4 {[%emt 0:04:30]} Qf6 {[%emt 0:00:27]} 31. Qxf6+ {[%emt 0:03:30]} Kxf6 {[%emt 0:00:26]} 32. Red1 {[%emt 0:00:30]} Bb6 {[%emt 0:00:50]} 33. Rc4 {[%emt 0:02:43]} Re2 {[%emt 0:05:50]} 34. Rf4+ {[%emt 0:00:55]} Kg7 {[%emt 0:00:03]} 35. a4 {[%emt 0:00:56]} Rd8 {[%emt 0:00:46]} 36. d6 {[%emt 0:02:51]} Rd7 {[%emt 0:00:11]} 37. Bh3 {[%emt 0:00:00]} Rd8 {[%emt 0:00:10]} 38. d7 {[%emt 0:02:00]} Re7 {[%emt 0:02:19]} 39. b4 {[%emt 0:04:45]} a5 {[%emt 0:00:25]} 40. Rd5 {[%emt 0:00:00]} Re1+ {[%emt 0:00:00]} 41. Kg2 {[%emt 0:08:20]} Ra8 {[%emt 0:11:20]} 42. Rb5 {[%emt 0:02:30]} Bd8 {[%emt 0:00:30]} 43. Rxb7 {[%emt 0:00:30]} axb4 {[%emt 0:00:00]} 44. Rfxb4 {[%emt 0:00:30]} Kf8 {[%emt 0:00:00]} 45. R7b5 {[%emt 0:04:30]} Re2 {[%emt 0:12:54]} 46. Rc5 {[%emt 0:03:30]} Re1 {[%emt 0:09:07]} 1-0

[Event "World Junior U20 Girls 2018"]
[Site "Gebze"]
[Date "2018.09.12"]
[Round "8"]
[White "Beydullayeva, Govhar"]
[Black "Nomin-Erdene, Davaademberel"]
[Result "1/2-1/2"]
[ECO "A88"]
[WhiteElo "2202"]
[BlackElo "2377"]
[Annotator "NA"]
[PlyCount "91"]
[EventDate "2018.09.05"]
[EventType "swiss"]
[EventCountry "TUR"]
[SourceTitle "playchess.com"]
[Source "ChessBase"]
[SourceQuality "1"]
[TimeControl "40/5400+30:1800+30"]

1. Nf3 {[%emt 0:00:30]} f5 {[%emt 0:00:30]} 2. g3 {[%emt 0:00:30]} Nf6 {[%emt 0:00:00]} 3. d4 {[%emt 0:00:00]} g6 {[%emt 0:00:00]} 4. Bg2 {[%emt 0:00:00]} Bg7 {[%emt 0:00:30]} 5. O-O {[%emt 0:00:30]} O-O {[%emt 0:00:30]} 6. c4 {[%emt 0:00:30]} d6 {[%emt 0:00:00]} 7. Nc3 {[%emt 0:00:00]} c6 {[%emt 0:00:00]} 8. Re1 {[%emt 0:00:00]} Na6 {[%emt 0:00:30]} 9. a3 {[%emt 0:00:00]} Nc7 {[%emt 0:04:30]} 10. Qd3 {[%emt 0:01:00]} Rb8 {[%emt 0:03:30]} 11. e4 {[%emt 0:06:30]} fxe4 {[%emt 0:02:30]} 12. Nxe4 {[%emt 0:00:30]} Bf5 {[%emt 0:00:30]} 13. Nh4 {[%emt 0:14:30]} Bxe4 {[%emt 0:15:30]} 14. Bxe4 {[%emt 0:00:30]} Nxe4 {[%emt 0:00:30]} 15. Qxe4 {[%emt 0:00:30]} e5 {[%emt 0:09:30]} 16. dxe5 {[%emt 0:01:30]} Bxe5 {[%emt 0:04:30]} 17. Nxg6 {[%emt 0:07:30]} hxg6 {[%emt 0:04:30]} 18. Qxg6+ {[%emt 0:00:30]} Bg7 {[%emt 0:00:30]} 19. Bg5 {[%emt 0:00:30]} Rf6 {[%emt 0:00:30]} 20. Bxf6 {[%emt 0:00:30]} Qxf6 {[%emt 0:00:30]} 21. Qxf6 {[%emt 0:00:30]} Bxf6 {[%emt 0:00:30]} 22. Rad1 {[%emt 0:00:30]} Rd8 {[%emt 0:00:30]} 23. b3 {[%emt 0:12:30]} d5 {[%emt 0:05:30]} 24. f4 {[%emt 0:05:30]} Kf7 {[%emt 0:03:30]} 25. f5 {[%emt 0:03:30]} b5 {[%emt 0:11:30]} 26. cxd5 {[%emt 0:05:30]} cxd5 {[%emt 0:00:00]} 27. Kg2 {[%emt 0:01:30]} d4 {[%emt 0:01:00]} 28. Rd3 {[%emt 0:00:30]} Nd5 {[%emt 0:01:30]} 29. Kf3 {[%emt 0:02:30]} Rh8 {[%emt 0:10:30]} 30. h4 {[%emt 0:08:30]} Ne7 {[%emt 0:00:30]} 31. Kf4 {[%emt 0:01:30]} Nd5+ {[%emt 0:05:33]} 32. Kf3 {[%emt 0:01:30]} b4 {[%emt 0:01:33]} 33. a4 {[%emt 0:01:30]} Ne7 {[%emt 0:07:12]} 34. Kf4 {[%emt 0:00:30]} Nd5+ {[%emt 0:00:41]} 35. Kf3 {[%emt 0:00:30]} Ne7 {[%emt 0:03:54]} 36. Kf4 {[%emt 0:08:20]} Re8 {[%emt 0:00:06]} 37. Re4 {[%emt 0:04:32]} Nd5+ {[%emt 0:02:58]} 38. Kf3 {[%emt 0:00:03]} Rxe4 {[%emt 0:00:53]} 39. Kxe4 {[%emt 0:00:30]} Nc3+ {[%emt 0:00:00]} 40. Kf3 {[%emt 0:00:00]} Be5 {[%emt 0:00:00]} 41. g4 {[%emt 0:05:35]} Kf6 {[%emt 0:03:40]} 42. Rd2 {[%emt 0:02:30]} a6 {[%emt 0:04:30]} 43. Rd3 {[%emt 0:01:30]} Nd5 {[%emt 0:09:53]} 44. Ke4 {[%emt 0:00:30]} Nc3+ {[%emt 0:00:30]} 45. Kf3 {[%emt 0:00:30]} Nd5 {[%emt 0:00:30]} 46. Ke4 {[%emt 0:00:00]} 1/2-1/2

[Event "World Junior U20 Girls 2018"]
[Site "Gebze"]
[Date "2018.09.12"]
[Round "8"]
[White "Chu, Ruotong"]
[Black "Li, Yunshan"]
[Result "1/2-1/2"]
[ECO "D10"]
[WhiteElo "2199"]
[BlackElo "2060"]
[Annotator "NA"]
[PlyCount "62"]
[EventDate "2018.09.05"]
[EventType "swiss"]
[EventCountry "TUR"]
[SourceTitle "playchess.com"]
[Source "ChessBase"]
[SourceQuality "1"]
[TimeControl "40/5400+30:1800+30"]

1. d4 {[%emt 0:02:30]} d5 {[%emt 0:00:30]} 2. c4 {[%emt 0:00:00]} c6 {[%emt 0:00:00]} 3. cxd5 {[%emt 0:00:00]} cxd5 {[%emt 0:00:00]} 4. Bf4 {[%emt 0:00:30]} Nf6 {[%emt 0:00:30]} 5. e3 {[%emt 0:00:00]} Nc6 {[%emt 0:00:00]} 6. Bd3 {[%emt 0:04:00]} a6 {[%emt 0:05:00]} 7. Nc3 {[%emt 0:00:30]} Bg4 {[%emt 0:01:30]} 8. Nge2 {[%emt 0:04:30]} e6 {[%emt 0:01:30]} 9. Rc1 {[%emt 0:05:30]} Bd6 {[%emt 0:02:30]} 10. Qb3 {[%emt 0:06:30]} O-O {[%emt 0:02:30]} 11. O-O {[%emt 0:04:30]} Na5 {[%emt 0:01:30]} 12. Qc2 {[%emt 0:00:30]} Bxe2 {[%emt 0:18:30]} 13. Nxe2 {[%emt 0:00:30]} Bxf4 {[%emt 0:03:30]} 14. Nxf4 {[%emt 0:00:30]} Rc8 {[%emt 0:01:30]} 15. Qe2 {[%emt 0:07:30]} Qb6 {[%emt 0:03:30]} 16. Bb1 {[%emt 0:14:30]} Nc4 {[%emt 0:20:30]} 17. Nd3 {[%emt 0:03:30]} Rc7 {[%emt 0:05:30]} 18. b3 {[%emt 0:03:30]} Na3 {[%emt 0:02:30]} 19. Rxc7 {[%emt 0:01:30]} Qxc7 {[%emt 0:00:30]} 20. Rc1 {[%emt 0:00:30]} Qb8 {[%emt 0:00:00]} 21. Qb2 {[%emt 0:01:30]} Nxb1 {[%emt 0:01:00]} 22. Qxb1 {[%emt 0:00:30]} Rc8 {[%emt 0:00:00]} 23. Rc2 {[%emt 0:00:30]} Ne8 {[%emt 0:04:00]} 24. Ne5 {[%emt 0:02:30]} Rxc2 {[%emt 0:02:30]} 25. Qxc2 {[%emt 0:00:30]} Qc7 {[%emt 0:00:30]} 26. Qxc7 {[%emt 0:00:30]} Nxc7 {[%emt 0:00:30]} 27. Nd7 {[%emt 0:00:30]} f6 {[%emt 0:02:30]} 28. Nc5 {[%emt 0:00:30]} b6 {[%emt 0:00:30]} 29. Na4 {[%emt 0:00:30]} Na8 {[%emt 0:00:30]} 30. Kf1 {[%emt 0:01:30]} Kf7 {[%emt 0:00:30]} 31. Ke2 {[%emt 0:00:30]} Ke7 {[%emt 0:00:30]} 1/2-1/2

[Event "World Junior U20 Girls 2018"]
[Site "Gebze"]
[Date "2018.09.12"]
[Round "8"]
[White "Schneider, Jana"]
[Black "Kocyigit, Buse Naz"]
[Result "1-0"]
[ECO "B01"]
[WhiteElo "2190"]
[BlackElo "1944"]
[Annotator "NA"]
[PlyCount "59"]
[EventDate "2018.09.05"]
[EventType "swiss"]
[EventCountry "TUR"]
[SourceTitle "playchess.com"]
[Source "ChessBase"]
[SourceQuality "1"]
[TimeControl "40/5400+30:1800+30"]

1. e4 {[%emt 0:00:30]} d5 {[%emt 0:00:30]} 2. exd5 {[%emt 0:00:30]} Qxd5 {[%emt 0:00:00]} 3. Nc3 {[%emt 0:00:00]} Qd8 {[%emt 0:00:00]} 4. d4 {[%emt 0:00:00]} Nf6 {[%emt 0:00:00]} 5. Nf3 {[%emt 0:00:30]} Bg4 {[%emt 0:00:00]} 6. h3 {[%emt 0:01:30]} Bxf3 {[%emt 0:00:30]} 7. Qxf3 {[%emt 0:00:00]} c6 {[%emt 0:00:00]} 8. Be3 {[%emt 0:01:00]} e6 {[%emt 0:00:00]} 9. O-O-O {[%emt 0:02:30]} Nbd7 {[%emt 0:00:30]} 10. Kb1 {[%emt 0:01:30]} Be7 {[%emt 0:02:30]} 11. g4 {[%emt 0:00:30]} Nd5 {[%emt 0:09:30]} 12. Nxd5 {[%emt 0:05:30]} cxd5 {[%emt 0:00:30]} 13. Qg2 {[%emt 0:07:30]} O-O {[%emt 0:17:30]} 14. g5 {[%emt 0:03:30]} Nb6 {[%emt 0:01:30]} 15. h4 {[%emt 0:03:30]} Nc4 {[%emt 0:00:30]} 16. Bc1 {[%emt 0:03:30]} Qb6 {[%emt 0:05:30]} 17. Ka1 {[%emt 0:01:30]} Rac8 {[%emt 0:02:30]} 18. Bd3 {[%emt 0:01:30]} Qa5 {[%emt 0:03:30]} 19. h5 {[%emt 0:05:30]} Rc6 {[%emt 0:11:30]} 20. c3 {[%emt 0:01:30]} Ra6 {[%emt 0:07:30]} 21. Bb1 {[%emt 0:02:30]} b5 {[%emt 0:16:30]} 22. f3 {[%emt 0:04:30]} b4 {[%emt 0:05:21]} 23. Qc2 {[%emt 0:00:30]} g6 {[%emt 0:03:36]} 24. hxg6 {[%emt 0:00:30]} fxg6 {[%emt 0:05:07]} 25. Rxh7 {[%emt 0:01:30]} e5 {[%emt 0:00:07]} 26. Rxe7 {[%emt 0:04:30]} bxc3 {[%emt 0:02:17]} 27. Qh2 {[%emt 0:03:30]} Rf7 {[%emt 0:01:36]} 28. Re8+ {[%emt 0:02:30]} Rf8 {[%emt 0:00:02]} 29. Rh1 {[%emt 0:00:00]} Rxe8 {[%emt 0:04:53]} 30. Qh8+ {[%emt 0:00:00]} 1-0

[Event "World Junior U20 Girls 2018"]
[Site "Gebze"]
[Date "2018.09.12"]
[Round "8"]
[White "Pychova, Nela"]
[Black "Salah, Nadezhda"]
[Result "1/2-1/2"]
[ECO "A26"]
[WhiteElo "2173"]
[BlackElo "1918"]
[Annotator "NA"]
[PlyCount "51"]
[EventDate "2018.09.05"]
[EventType "swiss"]
[EventCountry "TUR"]
[SourceTitle "playchess.com"]
[Source "ChessBase"]
[SourceQuality "1"]
[TimeControl "40/5400+30:1800+30"]

1. c4 {[%emt 0:00:30]} Nf6 {[%emt 0:00:30]} 2. Nc3 {[%emt 0:00:00]} g6 {[%emt 0:00:00]} 3. Nf3 {[%emt 0:01:00]} Bg7 {[%emt 0:00:00]} 4. g3 {[%emt 0:01:30]} O-O {[%emt 0:00:30]} 5. Bg2 {[%emt 0:00:00]} d6 {[%emt 0:00:30]} 6. O-O {[%emt 0:00:00]} Nc6 {[%emt 0:00:30]} 7. d3 {[%emt 0:02:30]} Nh5 {[%emt 0:00:30]} 8. Bd2 {[%emt 0:03:30]} f5 {[%emt 0:03:30]} 9. Qc1 {[%emt 0:05:30]} e5 {[%emt 0:13:30]} 10. Rb1 {[%emt 0:14:30]} a5 {[%emt 0:01:30]} 11. a3 {[%emt 0:00:30]} f4 {[%emt 0:14:30]} 12. b4 {[%emt 0:05:30]} axb4 {[%emt 0:13:30]} 13. axb4 {[%emt 0:00:30]} Bg4 {[%emt 0:00:30]} 14. Re1 {[%emt 0:06:30]} Qd7 {[%emt 0:10:30]} 15. Nd5 {[%emt 0:04:30]} fxg3 {[%emt 0:05:30]} 16. hxg3 {[%emt 0:07:30]} Bxf3 {[%emt 0:01:30]} 17. Bxf3 {[%emt 0:00:30]} Rxf3 {[%emt 0:00:30]} 18. exf3 {[%emt 0:00:30]} Qh3 {[%emt 0:12:04]} 19. Re3 {[%emt 0:06:30]} Nxg3 {[%emt 0:06:20]} 20. fxg3 {[%emt 0:00:30]} Qxg3+ {[%emt 0:00:00]} 21. Kh1 {[%emt 0:10:30]} Qh3+ {[%emt 0:00:05]} 22. Kg1 {[%emt 0:00:30]} Qg3+ {[%emt 0:00:01]} 23. Kh1 {[%emt 0:01:30]} Qh3+ {[%emt 0:01:23]} 24. Kg1 {[%emt 0:00:30]} Qg3+ {[%emt 0:00:00]} 25. Kh1 {[%emt 0:00:00]} Qh3+ {[%emt 0:00:00]} 26. Kg1 {[%emt 0:00:00]} 1/2-1/2

[Event "World Junior U20 Girls 2018"]
[Site "Gebze"]
[Date "2018.09.12"]
[Round "8"]
[White "Varshini, V."]
[Black "Altantuya, Boldbaatar"]
[Result "1-0"]
[ECO "B25"]
[WhiteElo "2173"]
[BlackElo "2210"]
[Annotator "NA"]
[PlyCount "73"]
[EventDate "2018.09.05"]
[EventType "swiss"]
[EventCountry "TUR"]
[SourceTitle "playchess.com"]
[Source "ChessBase"]
[SourceQuality "1"]
[TimeControl "40/5400+30:1800+30"]

1. e4 {[%emt 0:00:30]} c5 {[%emt 0:00:30]} 2. Nc3 {[%emt 0:00:30]} Nc6 {[%emt 0:00:30]} 3. g3 {[%emt 0:00:30]} d6 {[%emt 0:00:30]} 4. Bg2 {[%emt 0:00:00]} g6 {[%emt 0:00:30]} 5. d3 {[%emt 0:00:00]} Bg7 {[%emt 0:00:30]} 6. Nge2 {[%emt 0:00:30]} Nf6 {[%emt 0:00:00]} 7. h3 {[%emt 0:01:30]} O-O {[%emt 0:00:00]} 8. O-O {[%emt 0:00:30]} Bd7 {[%emt 0:00:30]} 9. g4 {[%emt 0:02:30]} Rb8 {[%emt 0:00:30]} 10. f4 {[%emt 0:00:00]} Ne8 {[%emt 0:00:30]} 11. Ng3 {[%emt 0:08:00]} b5 {[%emt 0:00:30]} 12. g5 {[%emt 0:05:30]} e6 {[%emt 0:03:30]} 13. f5 {[%emt 0:06:30]} Be5 {[%emt 0:05:30]} 14. Nce2 {[%emt 0:00:30]} exf5 {[%emt 0:01:30]} 15. exf5 {[%emt 0:00:30]} Nd4 {[%emt 0:00:30]} 16. Nxd4 {[%emt 0:19:30]} cxd4 {[%emt 0:03:30]} 17. fxg6 {[%emt 0:00:30]} hxg6 {[%emt 0:04:30]} 18. Qf3 {[%emt 0:13:30]} Rc8 {[%emt 0:19:30]} 19. Rf2 {[%emt 0:10:30]} Ng7 {[%emt 0:02:30]} 20. Ne4 {[%emt 0:07:30]} Bc6 {[%emt 0:16:30]} 21. Qg4 {[%emt 0:04:45]} Nh5 {[%emt 0:10:30]} 22. Nf6+ {[%emt 0:09:47]} Nxf6 {[%emt 0:06:30]} 23. gxf6 {[%emt 0:00:05]} Bxf6 {[%emt 0:03:02]} 24. Bxc6 {[%emt 0:06:01]} Rxc6 {[%emt 0:00:30]} 25. Bh6 {[%emt 0:00:00]} Re8 {[%emt 0:02:11]} 26. Raf1 {[%emt 0:00:07]} d5 {[%emt 0:02:02]} 27. h4 {[%emt 0:03:08]} Re5 {[%emt 0:02:33]} 28. Bf4 {[%emt 0:00:26]} Ree6 {[%emt 0:10:52]} 29. h5 {[%emt 0:00:28]} Bg7 {[%emt 0:01:29]} 30. h6 {[%emt 0:00:29]} g5 {[%emt 0:00:53]} 31. Bg3 {[%emt 0:00:40]} Rxh6 {[%emt 0:01:50]} 32. Rxf7 {[%emt 0:00:03]} Rcf6 {[%emt 0:00:23]} 33. R1xf6 {[%emt 0:00:49]} Rxf6 {[%emt 0:00:18]} 34. Rc7 {[%emt 0:00:36]} a6 {[%emt 0:01:11]} 35. Rc8 {[%emt 0:00:09]} Qxc8 {[%emt 0:00:36]} 36. Qxc8+ {[%emt 0:00:30]} Kh7 {[%emt 0:00:00]} 37. Be5 {[%emt 0:00:00]} 1-0